Cogmind - Beta 12 @@@ ROGUE MODE // 2023.06.10 @ 21:41:19 Player: Smie Result: Destroyed by as-73189 with Assembled Heavy Rifle Performance ------------- Evolutions (0) 0 Regions Visited (2) 400 Robots Destroyed (9) 45 Value Destroyed (190) 190 Prototype IDs (0) 0 Alien Tech Used (0) 0 Bonus (0) 0 TOTAL SCORE: 635 Bonus ------- None Cogmind --------- Core Integrity 0/250 Matter 290/300 Energy 93/100 System Corruption 0% Temperature Cool (0) Movement Rolling (110) Ox2 Location -10/Mines Parts ------- > --- POWER (1) -------- (None) > --- PROPULSION (2) --- Wheel > --- UTILITY (2) ------ Large Storage Unit > --- WEAPON (2) ------- Light Assault Rifle > --- INVENTORY (15) --- Light Ion Engine Light Treads Light Treads Aluminum Leg Aluminum Leg Aluminum Leg Aluminum Leg Heat Sink Heat Sink Tractor Beam Small Laser Peak State ------------ > --- POWER ------------ Ion Engine > --- PROPULSION ------- Wheel Compact Wheel > --- UTILITY ---------- Large Storage Unit Structural Scanner > --- WEAPON ----------- Light Assault Rifle Light Assault Rifle > --- INVENTORY -------- Light Ion Engine Light Treads Light Treads Aluminum Leg Aluminum Leg Aluminum Leg Wheel Medium Storage Unit Tractor Beam Light Assault Rifle [Rating: 8] Favorites ----------- Power Ion Engine Engine Ion Engine Propulsion Compact Wheel Wheel Compact Wheel Utility Structural Scanner Device Structural Scanner Storage Large Storage Unit Weapon Light Assault Rifle Ballistic Gun Light Assault Rifle Build | -11 -10 -10 ------- Run | Jun Mat Min Slots Evolved . | . . . Power . | . . . Propulsion . | . . . Utility . | . . . Weapon . | . . . Parts Attached 14 | 6 4 4 Power 2 | 1 . 1 Engine 2 | 1 . 1 Core . | . . . Reactor . | . . . Propulsion 4 | 2 . 2 Treads . | . . . Leg . | . . . Wheel 4 | 2 . 2 Hover . | . . . Flight . | . . . Utility 4 | 1 3 . Device 1 | . 1 . Storage 3 | 1 2 . Processor . | . . . Hackware . | . . . Protection . | . . . Artifact . | . . . Weapon 4 | 2 1 1 Energy Gun . | . . . Energy Cannon . | . . . Ballistic Gun 4 | 2 1 1 Ballistic Cannon . | . . . Launcher . | . . . Special Weapon . | . . . Impact Weapon . | . . . Slashing Weapon . | . . . Piercing Weapon . | . . . Special Melee Weapon . | . . . Unidentified Prototypes . | . . . Parts Lost 8 | . . 8 Power 2 | . . 2 Propulsion 3 | . . 3 Utility 1 | . . 1 Weapon 2 | . . 2 Highest Loss Streak 7 | . . 7 To Critical Strikes . | . . . Average Slot Usage (%) 97 | . 98 96 Engine 13 | . 14 12 Wheel 28 | . 28 28 Device 13 | . 12 14 Storage 14 | . 14 14 Ballistic Gun 27 | . 28 26 Naked Turns . | . . . Heaviest Build 28 | 12 28 28 Greatest Support 32 | 26 26 32 Greatest Overweight (x) 2 | . 1 2 Average Overweight (x) . | . . . Largest Inventory Capacity 15 | 8 15 15 Average Capacity 11 | 6 10 15 Most Carried 14 | 7 10 14 Average Carried 9 | 4 8 12 Final Capacity 15 | 8 15 15 Final Carried 11 | 7 10 11 Class Distribution -------------------- 100% | Mutant Dominant Class ---------------- Mutant | -10/Materials Mutant | -10/Mines Resources | -11 -10 -10 ----------- Run | Jun Mat Min Matter Collected 391 | 246 98 47 Remotely . | . . . Salvage Created 337 | 68 149 120 Parts 19 | 1 13 5 Haulers Intercepted . | . . . Recyclers Shooed . | . . . Parts Field Recycled . | . . . Retrieved Matter . | . . . Parts Self-Destructed . | . . . Prevented . | . . . Kills | -11 -10 -10 ------- Run | Jun Mat Min Combat Hostiles Destroyed 8 | . 5 3 Guns 8 | . 5 3 Classes Destroyed 5 | 1 3 1 Builder 1 | . 1 . Recycler 1 | 1 . . Swarmer 3 | . 3 . Grunt 4 | . 2 2 Assembled 1 | . . 1 Best Kill Streak 3 | 1 3 2 Combat Bots Only 3 | . 3 2 Max Kills in Single Turn 1 | 1 1 1 Gunslinging . | . . . Exploded . | . . . Melee . | . . . Uniques/NPCs Destroyed . | . . . Combat | -11 -10 -10 -------- Run | Jun Mat Min Damage Taken 716 | . 132 584 Core 251 | . 37 214 Absorbed by Shields . | . . . Core Remaining (%) 100 | 100 . . Volleys Fired 33 | 4 18 11 Largest 2 | 2 2 2 Hottest 40 | 40 40 40 Shots Fired 66 | 8 36 22 Gun 66 | 8 36 22 Cannon . | . . . Launcher . | . . . Special . | . . . Kinetic 66 | 8 36 22 Thermal . | . . . Explosive . | . . . Electromagnetic . | . . . Robot Hit Streak 12 | 6 7 12 Robot Miss Streak 7 | 1 7 1 Penetration Max . | . . . Secondary Targets 2 | . 1 1 Max Gunslinging Chain 1 | . 1 1 Shots Hit Robots 42 | 7 18 17 Core Hits 21 | 2 10 9 Critical Kills . | . . . Critical Parts Destroyed . | . . . Critical Strikes . | . . . Melee Attacks . | . . . Impact . | . . . Slashing . | . . . Piercing . | . . . Sneak Attacks . | . . . Combat Hostiles . | . . . Follow-up Attacks . | . . . Damage Inflicted 357 | 62 149 146 Guns 357 | 62 149 146 Cannons . | . . . Explosions . | . . . Melee . | . . . Ramming . | . . . Kinetic 357 | 62 149 146 Thermal . | . . . Explosive . | . . . Electromagnetic . | . . . Impact . | . . . Slashing . | . . . Piercing . | . . . Highest Corruption . | . . . Average Corruption . | . . . Corruption Purged . | . . . Corruption Blocked . | . . . Overload Shots . | . . . Overflow Damage . | . . . Projectiles . | . . . Explosions . | . . . Melee . | . . . Knockbacks . | . . . Impact . | . . . Kinetic . | . . . Secondary . | . . . Self-Inflicted Damage . | . . . Shots . | . . . Rammed . | . . . Targets Rammed . | . . . Kicked . | . . . Crushed . | . . . Highest Temperature 20 | . 6 20 Average Temperature 8 | . 6 10 Received Heat Transfer 237 | . 42 195 Siege Activations . | . . . Robots Corrupted . | . . . Combat Hostiles . | . . . Parts Fried . | . . . Impact Corruptions . | . . . Robots Melted . | . . . Combat Hostiles . | . . . Parts Melted . | . . . Heat Transferred . | . . . Parts Sabotaged . | . . . Parts Stolen . | . . . Parts Stripped . | . . . Power Chain Reactions . | . . . Missiles Intercepted . | . . . Alert | -11 -10 -10 ------- Run | Jun Mat Min Peak Influence 183 | 5 183 110 Initial 70 | . 3 70 Average 79 | . 90 91 Maximum Alert Level . | . . . Low Security (%) 100 | 100 100 100 Level 1 . | . . . Level 2 . | . . . Level 3 . | . . . Level 4 . | . . . Level 5 . | . . . High Security . | . . . Max Security . | . . . Squads Dispatched 2 | . 2 . Investigation 1 | . 1 . Extermination . | . . . Reinforcement 1 | . 1 . Assault . | . . . Garrison . | . . . Intercept . | . . . Searches Triggered . | . . . Construction Impeded . | . . . Haulers Reinforced . | . . . Active Scanning Responses . | . . . Cargo Convoy Interrupts . | . . . Stealth | -11 -10 -10 --------- Run | Jun Mat Min Distress Signals . | . . . Communications Jammed . | . . . Distress Signals . | . . . Times Spotted 32 | . 10 22 Peak Tracking Total 20 | . 3 20 Tactical Retreats 3 | . . 3 Traps | -11 -10 -10 ------- Run | Jun Mat Min Traps Triggered . | . . . Indirectly . | . . . Trap Hack Attempts . | . . . Triggered . | . . . Disarmed . | . . . Reprogrammed . | . . . Reused . | . . . Traps Extracted . | . . . Installed . | . . . Triggered . | . . . Machines | -11 -10 -10 ---------- Run | Jun Mat Min Machines Disabled . | . . . Max in Single Turn . | . . . Machines Repaired . | . . . Machines Sabotaged . | . . . Overloaded Fab Kills . | . . . Hacking | -11 -10 -10 --------- Run | Jun Mat Min Machines Accessed 2 | . 2 . Terminals 2 | . 2 . Fabricators . | . . . Repair Stations . | . . . Recycling Units . | . . . Scanalyzers . | . . . Garrison Access . | . . . Total Hacks 4 | . 4 . Successful . | . . . Failed 4 | . 4 . Catastrophic 1 | . 1 . Database Lockouts . | . . . Manual 4 | . 4 . Terminals 4 | . 4 . Fabricators . | . . . Repair Stations . | . . . Recycling Units . | . . . Scanalyzers . | . . . Garrison Access . | . . . Terminal Hacks . | . . . Fabricator Hacks . | . . . Repair Station Hacks . | . . . Recycling Unit Hacks . | . . . Scanalyzer . | . . . Garrison Access Hacks . | . . . Unauthorized Hacks . | . . . Terminals . | . . . Fabricators . | . . . Repair Stations . | . . . Recycling Units . | . . . Scanalyzers . | . . . Garrison Access . | . . . Data Cores Recovered . | . . . Used . | . . . Hacking Detections 2 | . 2 . Full Trace Events 1 | . 1 . Feedback Events . | . . . Feedback Blocked . | . . . Robot Schematics Acquired . | . . . Robots Built . | . . . Authchips . | . . . Time . | . . . Total Robot Build Rating . | . . . Part Schematics Acquired . | . . . Parts Built . | . . . Authchips . | . . . Time . | . . . Total Part Build Rating . | . . . Parts Repaired . | . . . Time . | . . . Parts Recycled . | . . . Recycled Matter . | . . . Retrieved Matter . | . . . Retrieved Components . | . . . Parts Scanalyzed . | . . . Part Schematics Acquired . | . . . Parts Damaged . | . . . Bothacking | -11 -10 -10 ------------ Run | Jun Mat Min Used RIF Installer . | . . . Robots Hacked . | . . . Non-combat . | . . . Combat . | . . . Robot Hacks Applied . | . . . Relay Couplers Released . | . . . Fabnet Peak Effective % . | . . . Robots Rewired . | . . . Allies Hacked . | . . . Hacks Repelled . | . . . Allies | -11 -10 -10 -------- Run | Jun Mat Min Total Allies . | . . . Largest Group . | . . . Highest-Rated Group . | . . . Highest-Rated Ally . | . . . Total Orders . | . . . Ally Attacks . | . . . Total Damage . | . . . Kills . | . . . Allies Corrupted . | . . . Allies Melted . | . . . Intel | -11 -10 -10 ------- Run | Jun Mat Min Robot Analysis Total . | . . . Derelict Logs Recovered . | . . . Drone Launches . | . . . Drone Recoveries . | . . . Exploration | -11 -10 -10 ------------- Run | Jun Mat Min Turns Passed 618 | 77 275 266 Spaces Moved 460 | 57 187 216 Core 2 | 2 . . Treads . | . . . Legs . | . . . Wheels 458 | 55 187 216 Hover . | . . . Flight . | . . . Fastest Speed 50 | 50 90 90 Average Speed 98 | 88 94 104 Slowest Speed 115 | 90 105 115 Overloaded Moves . | . . . Propulsion Burnouts . | . . . Robots Hopped . | . . . Cave-ins Triggered . | . . . Exploration Rate (%) 37 | 4 49 58 Regions Visited 2 Branch Regions 1 Pre-discovered Areas . | . . . Known Exits Taken . | . . . Unknown Exits Taken 2 | 1 1 . Scrap Searched 1 | . . 1 Spaces Dug . | . . . Terrain Destroyed . | . . . Melee . | . . . Projectile . | . . . AOE . | . . . Terrain Rammed . | . . . Walls Destroyed . | . . . Machines Disabled . | . . . Actions | -11 -10 -10 --------- Run | Jun Mat Min Total 568 | 74 257 237 Wait 43 | . 41 2 Move 458 | 56 186 216 Hop . | . . . Pick Up 16 | 8 4 4 Fast Attach 7 | 5 1 1 Attach 4 | 1 . 3 Detach . | . . . Swap 3 | . 3 . Drop 4 | . 4 . Fire 33 | 4 18 11 Melee . | . . . Ram . | . . . Kick . | . . . Crush . | . . . Escape Stasis . | . . . Rewire . | . . . Trap . | . . . Miscellaneous . | . . . Route ------- -11/Junkyard -10/Materials (discovered 2 exits: [*Mat] / [*Min]) -10/Mines History --------- Turn | Location | Event 17 | -11/Junkyard | Discovered new exit (range 14) 78 | -11/Junkyard | Entered Materials 271 | -10/Materials | Discovered new exit (range 16) 302 | -10/Materials | Build established: Mutant 347 | -10/Materials | Discovered new exit (range 6) 353 | -10/Materials | Entered Mines 388 | -10/Mines | Met a Derelict bent on vengeance 551 | -10/Mines | Assembled infested the area 556 | -10/Mines | Assisted by a Guerilla fighting off Assembled 584 | -10/Mines | Core integrity fell below 50% 613 | -10/Mines | Core integrity fell below 20% 619 | -10/Mines | Destroyed by as-73189 with Assembled Heavy Rifle Last Messages --------------- 00559_ R-06 Scavenger destroyed. 00562_ T-07 Excavator destroyed. 00568_ Lgt. Assault Rifle destroyed. 00573_ K-01 Serf collects debris. 00577_ K-01 Serf destroyed. 00580_ as-73096 sneak attacks. 00580_ K-01 Serf destroyed. 00580_ R-06 Scavenger destroyed. 00594_ Acquired 10 matter. 00595_ Acquired 2 matter. 00598_ Ion Engine destroyed. 00600_ Acquired 2 matter. 00602_ as-91552 destroyed. 00603_ Acquired 2 matter. 00604_ Wheel destroyed. 00605_ Acquired 10 matter. 00610_ Com. Wheel destroyed. 00611_ Structural Scanner destroyed. 00614_ Lgt. Assault Rifle destroyed. 00615_ Com. Wheel destroyed. Map ----- +----------------------------------------------------+ | ????????? ###### ???## ############?? | | ???????? ###### ???## #### #####? | | # ?????? ?## ### ###? | | ##?????????## # ## ##? | | ##?????????## ###? | | ##?????????### ###?? | | ##??????????### ###### ###??? | | #####???????#### ######## ###??? | | #####????????#######???#### ###??? | | ?????????#####?????#### ###??? | | ##???????????????????????### ##??? | | ###??????????????????????## ###?? | | ####?????????????????????## ####? | | ####????????????????????## ###? | | ###????????????????????### ##? | | ##????????????????????### ##? | | ##????????????????????## ###? | | !% ###???????????????????### ###? | | * ######????????????????### """ ###? | | ######???????????????## """ ###? | | ######????????????## """ ##? | | #####???????????### ##? | | % ##???????????### t ###? | | ! ### ############### ####? | | ### ### ############### ####?? | | ##### #### ## aa @ ###??? | | ########## a%a a ###???? | | ##?########## %######### #####???? | | ????????##### ########## #####????? | | ############# ###??########??????? | | ############# ###########???????? | | ## #### ########??????????? | | # ## ## ##########???? | | #########???? | | # ##???? | | ##### ##???? | | ## ##### ##???? | | ######### ############ ###???? | | ########## ####?######## ###???? | | ???????### ####??????????###????? | | ??????### ####??????????????????? | | ??????## #####???????????????????? | | ??????### #####????????????????????? | | ??????########??????????????????????? | | ???????######???????????????????????? | | ????????????????????????????????????? | | ????????????????????????????????????? | | ????????????????????????????????????? | | | | | +----------------------------------------------------+ Best States ------------- Heat Dissipation 25 Energy Generation 10 Energy Capacity 250 Matter Stores 300 Matter Capacity 300 Sight Range 16 Terrain Scan Density 10 Evasion (%) 42 Item Schematics ----------------- None Robot Schematics ------------------ None Fabricated ------------ Nothing Alien Tech Used ----------------- None Achievements -------------- None Challenges ------------ None Game ------ Seed ScatterLegSplitter Manual? 0 Play Time 00:16:09 Cumulative 150.8 hours Start 2023.06.10 @ 21:27:13 End 2023.06.10 @ 21:41:19 Sessions 1 Manual Loads 0 Difficulty Rogue Special Mode None Game No. 99 Rogue 80 Adventurer 16 Explorer 3 Win Type - Total 5 Types 4/0/1/0/0/0/0/0/0 Lore% 56 Gallery% 60 Achievement% 51 Wizard Run 0 Options --------- ASCII 1 Keyboard 1 Movement Vi Keybinds 0 Fullscreen 0 Font 16/Terminus Map View 76x50 Tactical HUD 1 Map Filters NONE Filters NONE Steam X RUN: e12e49aa-4e0a-4a2b-ba50-c7e10282c717